[Event "FIDE WCCC Girls-12 2024"]
[Site "Montesilvano"]
[Date "2024.11.23"]
[Round "8.9"]
[White "Pratitee Bordoloi"]
[Black "Harutyunyan, Gabriela"]
[Result "1-0"]
[ECO "B45"]
[WhiteElo "1929"]
[BlackElo "1730"]
[Annotator "RC"]
[PlyCount "147"]
[EventDate "2024.11.18"]
[EventType "swiss"]
[EventCountry "ITA"]
[SourceTitle "playchess.com"]
[Source "ChessBase"]
[SourceQuality "1"]
[TimeControl "5400+30"]

1. e4 {[%emt 0:00:03]} c5 {[%emt 0:00:23]} 2. Nf3 {[%emt 0:00:09]} e6 {[%emt 0:00:22]} 3. d4 {[%emt 0:00:08]} cxd4 {[%emt 0:00:06]} 4. Nxd4 {[%emt 0:00:09]} Nf6 {[%emt 0:00:07]} 5. Nc3 {[%emt 0:00:22]} Nc6 {[%emt 0:00:11]} 6. Be3 {[%emt 0:00:20]} Bb4 {[%emt 0:00:49]} 7. f3 {[%emt 0:01:58]} d5 {[%emt 0:01:48]} 8. Nxc6 {[%emt 0:10:36]} bxc6 {[%emt 0:00:12]} 9. e5 {[%emt 0:03:55]} Nd7 {[%emt 0:04:30]} 10. f4 {[%emt 0:00:39]} Bc5 {[%emt 0:10:29]} 11. Bxc5 {[%emt 0:05:41]} Nxc5 {[%emt 0:00:08]} 12. b4 {[%emt 0:03:55]} Nd7 {[%emt 0:02:02]} 13. Qd2 {[%emt 0:01:20]} a5 {[%emt 0:01:21]} 14. b5 {[%emt 0:01:10]} c5 {[%emt 0:02:05]} 15. Be2 {[%emt 0:01:10]} Bb7 {[%emt 0:02:29]} 16. Bf3 {[%emt 0:01:59]} a4 {[%emt 0:02:46]} 17. O-O {[%emt 0:01:35]} Nb6 {[%emt 0:02:46]} 18. Qf2 {[%emt 0:02:06]} Qc7 {[%emt 0:02:06]} 19. Rae1 {[%emt 0:03:00]} O-O-O {[%emt 0:05:22]} 20. a3 {[%emt 0:05:34]} h6 {[%emt 0:03:23]} 21. g3 {[%emt 0:04:40]} Kb8 {[%emt 0:07:54]} 22. Bg2 {[%emt 0:01:30]} Rhe8 {[%emt 0:03:10]} 23. Re2 {[%emt 0:08:14]} f5 {[%emt 0:03:47]} 24. exf6 {[%emt 0:03:07]} gxf6 {[%emt 0:00:31]} 25. Rfe1 {[%emt 0:01:17]} e5 {[%emt 0:01:11]} 26. fxe5 {[%emt 0:04:12]} fxe5 {[%emt 0:02:00]} 27. Qf6 {[%emt 0:01:55]} Rd6 {[%emt 0:00:48]} 28. Qh4 {[%emt 0:01:33]} e4 {[%emt 0:01:50]} 29. Rf1 {[%emt 0:02:49]} Qg7 {[%emt 0:01:51]} 30. Qf4 {[%emt 0:02:42]} Red8 {[%emt 0:01:34]} 31. Nd1 {[%emt 0:05:53]} Ka8 {[%emt 0:00:55]} 32. Ne3 {[%emt 0:02:30]} Qc3 {[%emt 0:02:25]} 33. Ng4 {[%emt 0:04:08]} Qc4 {[%emt 0:06:08]} 34. Rfe1 {[%emt 0:03:13]} Qxb5 {[%emt 0:01:22]} 35. Nxh6 {[%emt 0:01:34]} R6d7 {[%emt 0:00:42]} 36. Bh3 {[%emt 0:02:33]} Rh7 {[%emt 0:02:22]} 37. Bf5 {[%emt 0:02:32]} Rf8 {[%emt 0:00:45]} 38. g4 {[%emt 0:03:01]} Qc6 {[%emt 0:01:34]} 39. g5 {[%emt 0:01:27]} Bc8 {[%emt 0:01:09]} 40. Qg4 {[%emt 0:03:39]} Bxf5 {[%emt 0:02:47]} 41. Nxf5 {[%emt 0:00:05]} Qg6 {[%emt 0:00:54]} 42. Rf2 {[%emt 0:01:48]} Nd7 {[%emt 0:00:39]} 43. Nh4 {[%emt 0:00:56]} Qd6 {[%emt 0:01:32]} 44. Rxf8+ {[%emt 0:00:19]} Qxf8 {[%emt 0:00:42]} 45. g6 {[%emt 0:00:44]} Rg7 {[%emt 0:00:15]} 46. Qe6 {[%emt 0:00:42]} Qg8 {[%emt 0:00:49]} 47. Qa6+ {[%emt 0:00:13]} Kb8 {[%emt 0:00:06]} 48. Rb1+ {[%emt 0:00:04]} Kc7 {[%emt 0:00:04]} 49. Rb7+ {[%emt 0:00:20]} Kd8 {[%emt 0:00:12]} 50. Qa5+ {[%emt 0:00:41]} Ke8 {[%emt 0:00:26]} 51. Qa8+ {[%emt 0:00:42]} Ke7 {[%emt 0:00:07]} 52. Nf5+ {[%emt 0:01:01]} Kf6 {[%emt 0:00:08]} 53. Qxg8 {[%emt 0:00:20]} Rxg8 {[%emt 0:00:13]} 54. Rxd7 {[%emt 0:00:19]} Kxf5 {[%emt 0:00:04]} 55. Rxd5+ {[%emt 0:00:12]} Kf4 {[%emt 0:00:18]} 56. Rd6 {[%emt 0:00:49]} Ke5 {[%emt 0:01:27]} 57. Ra6 {[%emt 0:00:29]} Kf4 {[%emt 0:01:52]} 58. Kf2 {[%emt 0:00:18]} Rd8 {[%emt 0:00:59]} 59. g7 {[%emt 0:00:22]} e3+ {[%emt 0:00:11]} 60. Ke1 {[%emt 0:00:47]} Rg8 {[%emt 0:00:33]} 61. Rf6+ {[%emt 0:00:45]} Ke5 {[%emt 0:00:23]} 62. Rf7 {[%emt 0:00:12]} Ke6 {[%emt 0:00:06]} 63. Rb7 {[%emt 0:00:10]} Kf5 {[%emt 0:00:15]} 64. Ke2 {[%emt 0:00:13]} Kf4 {[%emt 0:00:19]} 65. Rf7+ {[%emt 0:00:06]} Ke4 {[%emt 0:00:07]} 66. h4 {[%emt 0:00:16]} Ke5 {[%emt 0:00:40]} 67. h5 {[%emt 0:00:23]} Ke6 {[%emt 0:00:14]} 68. Ra7 {[%emt 0:00:07]} Kf6 {[%emt 0:00:05]} 69. h6 {[%emt 0:00:13]} Kg6 {[%emt 0:00:04]} 70. Ra6+ {[%emt 0:00:10]} Kh7 {[%emt 0:00:04]} 71. Kxe3 {[%emt 0:00:08]} c4 {[%emt 0:00:04]} 72. Rf6 {[%emt 0:00:23]} Re8+ {[%emt 0:00:08]} 73. Kd4 {[%emt 0:00:09]} Rd8+ {[%emt 0:00:14]} 74. Kc3 {[%emt 0:00:21]} 1-0

[Event "FIDE WCCC Girls-12 2024"]
[Site "Montesilvano"]
[Date "2024.11.23"]
[Round "8.25"]
[White "Bogomolnikova, Zlata"]
[Black "Lukin, Yesenia"]
[Result "1-0"]
[ECO "D36"]
[WhiteElo "1628"]
[BlackElo "1732"]
[Annotator "NA RC"]
[PlyCount "70"]
[EventDate "2024.11.18"]
[EventType "swiss"]
[EventCountry "ITA"]
[SourceTitle "playchess.com"]
[Source "ChessBase"]
[SourceQuality "1"]
[TimeControl "5400+30"]

1. d4 {[%emt 0:00:04]} Nf6 {[%emt 0:00:30]} 2. c4 {[%emt 0:00:11]} e6 {[%emt 0:00:02]} 3. Nc3 {[%emt 0:00:08]} d5 {[%emt 0:00:07]} 4. cxd5 {[%emt 0:00:56]} exd5 {[%emt 0:00:47]} 5. Bg5 {[%emt 0:00:14]} Be7 {[%emt 0:01:33]} 6. Qc2 {[%emt 0:03:00]} h6 {[%emt 0:05:39]} 7. Bh4 {[%emt 0:00:22]} c6 {[%emt 0:02:15]} 8. e3 {[%emt 0:00:39]} O-O {[%emt 0:01:48]} 9. Bd3 {[%emt 0:02:41]} Be6 {[%emt 0:05:41]} 10. Nge2 {[%emt 0:01:19]} Nbd7 {[%emt 0:05:31]} 11. O-O {[%emt 0:01:08]} Nh5 {[%emt 0:05:09]} 12. Bxe7 {[%emt 0:06:51]} Qxe7 {[%emt 0:00:39]} 13. Ng3 {[%emt 0:07:10]} Nxg3 {[%emt 0:14:55]} 14. hxg3 {[%emt 0:00:43]} Qg5 {[%emt 0:02:27]} 15. Ne2 {[%emt 0:07:42]} Rfe8 {[%emt 0:11:10]} 16. Nf4 {[%emt 0:02:00]} Nf6 {[%emt 0:04:49]} 17. b4 {[%emt 0:15:52]} Nh5 {[%emt 0:06:08]} 18. Nxh5 {[%emt 0:02:36]} Qxh5 {[%emt 0:00:11]} 19. a4 {[%emt 0:02:07]} Rec8 {[%emt 0:02:33]} 20. Qd2 {[%emt 0:02:01]} Bd7 {[%emt 0:01:38]} 21. Rfc1 {[%emt 0:00:51]} Rc7 {[%emt 0:01:08]} 22. Rc5 {[%emt 0:04:44]} b6 {[%emt 0:03:01]} 23. Rc3 {[%emt 0:01:05]} a5 {[%emt 0:03:08]} 24. b5 {[%emt 0:01:31]} Rac8 {[%emt 0:00:17]} 25. Rac1 {[%emt 0:00:14]} Qg5 {[%emt 0:02:17]} 26. R1c2 {[%emt 0:02:36]} Qe7 {[%emt 0:06:16]} 27. Qc1 {[%emt 0:01:36]} c5 {[%emt 0:05:19]} 28. dxc5 {[%emt 0:02:41]} Rxc5 {[%emt 0:00:09]} 29. Qb2 {[%emt 0:03:54]} Rxc3 {[%emt 0:07:30]} 30. Rxc3 {[%emt 0:00:32]} Qf6 {[%emt 0:01:02]} 31. Rxc8+ {[%emt 0:01:02]} Bxc8 {[%emt 0:00:07]} 32. Qc2 {[%emt 0:07:33]} Qd8 {[%emt 0:01:33]} 33. Qc6 {[%emt 0:00:44]} Be6 {[%emt 0:00:35]} 34. Kh2 {[%emt 0:05:02]} g6 {[%emt 0:00:48]} 35. Bxg6 {[%emt 0:01:01]} fxg6 {[%emt 0:01:18]} 1-0

[Event "FIDE WCCC Girls-12 2024"]
[Site "Montesilvano"]
[Date "2024.11.23"]
[Round "8.34"]
[White "Huang, Lucia"]
[Black "Yang, Hayeon"]
[Result "1-0"]
[ECO "C54"]
[WhiteElo "1621"]
[BlackElo "1482"]
[Annotator "NA RC"]
[PlyCount "65"]
[EventDate "2024.11.18"]
[EventType "swiss"]
[EventCountry "ITA"]
[SourceTitle "playchess.com"]
[Source "ChessBase"]
[SourceQuality "1"]
[TimeControl "5400+30"]

1. e4 {[%emt 0:00:01]} e5 {[%emt 0:00:10]} 2. Nf3 {[%emt 0:00:04]} Nc6 {[%emt 0:00:20]} 3. Bc4 {[%emt 0:00:05]} Bc5 {[%emt 0:00:16]} 4. O-O {[%emt 0:00:05]} Nf6 {[%emt 0:00:30]} 5. d3 {[%emt 1:32:45]} h6 {[%emt 0:00:24]} 6. c3 {[%emt 0:00:00]} O-O {[%emt 0:01:07]} 7. a4 {[%emt 0:00:00]} a6 {[%emt 0:00:07]} 8. Na3 {[%emt 0:00:00]} d6 {[%emt 0:00:27]} 9. h3 {[%emt 0:00:00]} Be6 {[%emt 0:00:25]} 10. Re1 {[%emt 0:00:00]} Na5 {[%emt 0:01:39]} 11. Bxe6 {[%emt 0:00:00]} fxe6 {[%emt 0:00:12]} 12. b4 {[%emt 0:00:00]} Bxb4 {[%emt 0:01:09]} 13. cxb4 {[%emt 0:00:00]} Nc6 {[%emt 0:00:26]} 14. Qb3 {[%emt 0:00:00]} Qd7 {[%emt 0:02:55]} 15. Bb2 {[%emt 0:00:00]} Nh5 {[%emt 0:02:27]} 16. Rad1 {[%emt 0:00:00]} Nf4 {[%emt 0:03:16]} 17. d4 {[%emt 0:00:00]} exd4 {[%emt 0:07:13]} 18. Nxd4 {[%emt 0:00:00]} Nxd4 {[%emt 0:00:40]} 19. Bxd4 {[%emt 0:00:00]} Kh8 {[%emt 0:01:54]} 20. Nc4 {[%emt 0:00:00]} Qe7 {[%emt 0:02:17]} 21. e5 {[%emt 0:00:00]} d5 {[%emt 0:07:00]} 22. Nb2 {[%emt 0:00:00]} b6 {[%emt 0:04:50]} 23. b5 {[%emt 0:00:00]} axb5 {[%emt 0:01:21]} 24. axb5 {[%emt 0:00:00]} Ra3 {[%emt 0:02:09]} 25. Qc2 {[%emt 0:00:00]} Qg5 {[%emt 0:02:13]} 26. f3 {[%emt 0:00:00]} Nxh3+ {[%emt 0:16:36]} 27. Kh2 {[%emt 0:00:00]} Nf4 {[%emt 0:03:26]} 28. Nd3 {[%emt 0:00:00]} Qf5 {[%emt 0:01:43]} 29. Re3 {[%emt 0:00:00]} c5 {[%emt 0:01:31]} 30. bxc6 {[%emt 0:00:12]} b5 {[%emt 0:01:07]} 31. Bc5 {[%emt 0:00:18]} Nxd3 {[%emt 0:01:07]} 32. Bxf8 {[%emt 0:02:29]} Qf4+ {[%emt 0:02:11]} 33. g3 {[%emt 0:00:08]} 1-0

[Event "FIDE WCCC Girls-12 2024"]
[Site "Montesilvano"]
[Date "2024.11.23"]
[Round "8.36"]
[White "Ordonez Alarcon, Daniela"]
[Black "Jacome Revelo, Daniela Alexandra"]
[Result "1/2-1/2"]
[ECO "A59"]
[WhiteElo "1606"]
[BlackElo "1764"]
[Annotator "NA RC"]
[PlyCount "61"]
[EventDate "2024.11.18"]
[EventType "swiss"]
[EventCountry "ITA"]
[SourceTitle "playchess.com"]
[Source "ChessBase"]
[SourceQuality "1"]
[TimeControl "5400+30"]

1. d4 {[%emt 0:00:02]} Nf6 {[%emt 0:00:15]} 2. c4 {[%emt 0:00:20]} c5 {[%emt 0:00:34]} 3. d5 {[%emt 0:00:49]} b5 {[%emt 0:01:29]} 4. cxb5 {[%emt 0:00:22]} a6 {[%emt 0:00:41]} 5. bxa6 {[%emt 0:01:02]} Bxa6 {[%emt 0:00:54]} 6. Nc3 {[%emt 0:01:24]} g6 {[%emt 0:02:03]} 7. e4 {[%emt 0:02:07]} Bxf1 {[%emt 0:01:23]} 8. Kxf1 {[%emt 0:00:05]} d6 {[%emt 0:00:40]} 9. Nf3 {[%emt 0:00:54]} Bg7 {[%emt 0:03:15]} 10. g3 {[%emt 0:03:05]} O-O {[%emt 0:01:53]} 11. Kg2 {[%emt 0:05:01]} Qb6 {[%emt 0:05:14]} 12. a4 {[%emt 0:03:47]} Na6 {[%emt 0:05:13]} 13. Ne1 {[%emt 0:06:51]} Rfb8 {[%emt 0:09:30]} 14. Nc2 {[%emt 0:13:36]} Nb4 {[%emt 0:01:25]} 15. Re1 {[%emt 0:01:53]} Nd7 {[%emt 0:03:21]} 16. Nb5 {[%emt 0:06:04]} Qa5 {[%emt 0:04:20]} 17. Nxb4 {[%emt 0:11:14]} Qxb4 {[%emt 0:05:37]} 18. Ra3 {[%emt 0:03:43]} c4 {[%emt 0:09:21]} 19. Re2 {[%emt 0:03:49]} Ne5 {[%emt 0:11:49]} 20. Bd2 {[%emt 0:01:46]} Qc5 {[%emt 0:01:20]} 21. Be3 {[%emt 0:04:34]} Qc8 {[%emt 0:00:58]} 22. Bd4 {[%emt 0:00:53]} Nd3 {[%emt 0:01:33]} 23. Bxg7 {[%emt 0:02:11]} Kxg7 {[%emt 0:00:11]} 24. Rc2 {[%emt 0:00:47]} Qd7 {[%emt 0:10:04]} 25. Rxc4 {[%emt 0:04:17]} Nc5 {[%emt 0:05:30]} 26. Ra1 {[%emt 0:05:32]} Nxa4 {[%emt 0:01:14]} 27. Rcxa4 {[%emt 0:00:48]} Rxa4 {[%emt 0:00:14]} 28. Qxa4 {[%emt 0:00:09]} Qxb5 {[%emt 0:01:32]} 29. Qxb5 {[%emt 0:00:09]} Rxb5 {[%emt 0:00:05]} 30. Rb1 {[%emt 0:01:09]} Kf6 {[%emt 0:01:26]} 31. b4 {[%emt 0:01:12]} 1/2-1/2